Cogmind - Beta 14 @@@ ROGUE MODE // 2025.01.02 @ 12:58:27 Player: Cog on my mind Result: Destroyed by D-53 Grenadier with Mini Grenade Launcher Performance ------------- Evolutions (0) 0 Regions Visited (2) 400 Robots Destroyed (18) 90 Value Destroyed (323) 323 Prototype IDs (6) 120 Alien Tech Used (0) 0 Bonus (0) 0 TOTAL SCORE: 933 Bonus ------- None Cogmind --------- Core Integrity 0/250 Matter 150/300 Energy 100/100 System Corruption 0% Temperature Cool (0) Movement Core (50) Location -10/Mines Parts ------- > --- POWER (1) -------- (None) > --- PROPULSION (2) --- (None) > --- UTILITY (2) ------ (None) > --- WEAPON (2) ------- (None) > --- INVENTORY (5) ---- Improved Terrain Scanner Thief Drone Bay (3/3) Grenade Launcher Mining Claw Mining Claw Peak State ------------ > --- POWER ------------ Light Ion Engine > --- PROPULSION ------- Wheel Compact Wheel > --- UTILITY ---------- Small Storage Unit Thief Drone Bay > --- WEAPON ----------- Assault Rifle Light Assault Rifle > --- INVENTORY -------- Wheel Medium Matter Pod Improved Terrain Scanner Seismic Detector Grenade Launcher Mining Claw Mining Claw [Rating: 13] Favorites ----------- Power Ion Engine Engine Ion Engine Propulsion Compact Wheel Wheel Compact Wheel Utility Small Storage Unit Device Seismic Detector Storage Small Storage Unit Weapon Assault Rifle Ballistic Gun Assault Rifle Launcher Grenade Launcher Slashing Weapon Mining Claw Build | -11 -10 -10 ------- Run | Yrd Mat Min Slots Evolved . | . . . Power . | . . . Propulsion . | . . . Utility . | . . . Weapon . | . . . Parts Attached 22 | 7 5 10 Power 2 | 1 . 1 Engine 2 | 1 . 1 Core . | . . . Reactor . | . . . Propulsion 5 | 2 2 1 Treads . | . . . Leg . | . . . Wheel 5 | 2 2 1 Hover . | . . . Flight . | . . . Utility 4 | 2 . 2 Device 3 | 1 . 2 Storage 1 | 1 . . Processor . | . . . Hackware . | . . . Protection . | . . . Artifact . | . . . Weapon 11 | 2 3 6 Energy Gun . | . . . Energy Cannon . | . . . Ballistic Gun 6 | 2 2 2 Ballistic Cannon . | . . . Launcher 4 | . 1 3 Special Weapon . | . . . Impact Weapon . | . . . Slashing Weapon 1 | . . 1 Piercing Weapon . | . . . Special Melee Weapon . | . . . Unidentified Prototypes 1 | . . 1 Parts Lost 4 | . 2 2 Power . | . . . Propulsion 4 | . 2 2 Utility . | . . . Weapon . | . . . Highest Loss Streak 2 | . 2 1 To Critical Strikes . | . . . Average Slot Usage (%) 97 | . 98 96 Engine 13 | . 14 13 Wheel 26 | . 26 26 Device 13 | . 14 13 Storage 13 | . 14 13 Ballistic Gun 25 | . 28 21 Slashing Weapon 1 | . . 4 Peak Build Rating 13 | 7 8 13 Average Rating 7 | 5 7 7 On Entrance 5 | . 7 8 Naked Turns 6 | . . 6 Heaviest Build 15 | 14 14 15 Greatest Support 32 | 32 32 26 Greatest Overweight (x) . | . . . Average Overweight (x) . | . . . Largest Inventory Capacity 8 | 8 8 8 Average Capacity 7 | 7 8 7 Most Carried 8 | 3 8 8 Average Carried 5 | . 5 6 Final Capacity 8 | 8 8 5 Final Carried 8 | 3 8 5 Class Distribution -------------------- 57% | Scavenger-Mutant 42% | Mutant Dominant Class ---------------- Mutant | -10/Materials Scavenger-Mutant | -10/Mines Resources | -11 -10 -10 ----------- Run | Yrd Mat Min Matter Collected 602 | 240 264 98 Remotely . | . . . Salvage Created 455 | 80 267 108 Parts 42 | 9 22 11 Haulers Intercepted . | . . . Recyclers Shooed 2 | 1 1 . Parts Field Recycled . | . . . Retrieved Matter . | . . . Parts Self-Destructed . | . . . Prevented . | . . . Kills | -11 -10 -10 ------- Run | Yrd Mat Min Combat Hostiles Destroyed 18 | . 9 9 Guns 11 | . 9 2 AOE 7 | . . 7 Classes Destroyed 6 | 2 3 1 Worker 1 | . 1 . Tunneler 1 | 1 . . Recycler 2 | 1 1 . Swarmer 9 | . 6 3 Grunt 5 | . 3 2 Assembled 4 | . . 4 Best Kill Streak 5 | 2 5 4 Combat Bots Only 5 | . 5 4 Max Kills in Single Turn 3 | 1 1 3 Gunslinging . | . . . Exploded 3 | . . 3 Melee . | . . . Uniques/NPCs Destroyed . | . . . Combat | -11 -10 -10 -------- Run | Yrd Mat Min Hostile Shots Fired 75 | . 50 25 Missed 16 | . 13 3 Damage Taken 714 | . 308 406 Core 257 | . 71 186 Absorbed by Shields . | . . . Core Remaining (%) 100 | 100 . . Volleys Fired 56 | 3 40 13 Largest 2 | 2 2 2 Hottest 40 | 40 40 40 Shots Fired 105 | 6 79 20 Gun 100 | 6 78 16 Cannon . | . . . Launcher 5 | . 1 4 Special . | . . . Kinetic 100 | 6 78 16 Thermal . | . . . Explosive 5 | . 1 4 Electromagnetic . | . . . Robot Hit Streak 12 | 2 7 12 Robot Miss Streak 4 | 2 4 3 Penetration Max . | . . . Secondary Targets 2 | . 2 . Max Gunslinging Chain 1 | . 1 . Shots Hit Robots 66 | 3 49 14 Core Hits 33 | 3 17 13 Critical Kills 1 | . 1 . Critical Parts Destroyed . | . . . Critical Strikes 1 | . 1 . Destroy 1 | . 1 . Melee Attacks . | . . . Impact . | . . . Slashing . | . . . Piercing . | . . . Sneak Attacks . | . . . Combat Hostiles . | . . . Follow-up Attacks . | . . . Damage Inflicted 1176 | 36 549 591 Guns 706 | 36 549 121 Cannons . | . . . Explosions 470 | . . 470 Melee . | . . . Ramming . | . . . Kinetic 706 | 36 549 121 Thermal 84 | . . 84 Explosive 386 | . . 386 Electromagnetic . | . . . Impact . | . . . Slashing . | . . . Piercing . | . . . Highest Corruption . | . . . Average Corruption . | . . . Corruption Purged . | . . . Corruption Blocked . | . . . Overload Shots . | . . . Overflow Damage 9 | . . 9 Projectiles . | . . . Explosions 9 | . . 9 Melee . | . . . Knockbacks . | . . . Impact . | . . . Kinetic . | . . . Secondary . | . . . Self-Inflicted Damage 76 | . 7 69 Shots 4 | . 1 3 Rammed . | . . . Targets Rammed . | . . . Kicked . | . . . Crushed . | . . . Highest Temperature 18 | . 6 18 Average Temperature 10 | . 6 11 Received Heat Transfer 86 | . 12 74 Siege Activations . | . . . Robots Corrupted . | . . . Combat Hostiles . | . . . Parts Fried . | . . . Impact Corruptions . | . . . Robots Melted . | . . . Combat Hostiles . | . . . Parts Melted . | . . . Heat Transferred 100 | . . 100 Parts Sabotaged . | . . . Parts Stolen . | . . . Parts Stripped . | . . . Power Chain Reactions . | . . . Alert | -11 -10 -10 ------- Run | Yrd Mat Min Peak Influence 315 | 10 315 282 Initial 58 | . 6 58 Average 178 | 3 177 217 Maximum Alert Level 1 | . 1 1 Low Security (%) 56 | 100 64 32 Level 1 43 | . 35 67 Level 2 . | . . . Level 3 . | . . . Level 4 . | . . . Level 5 . | . . . High Security . | . . . Max Security . | . . . Squads Dispatched 3 | . 3 . Investigation 2 | . 2 . Extermination . | . . . Reinforcement 1 | . 1 . Assault . | . . . Garrison . | . . . Intercept . | . . . Searches Triggered . | . . . Construction Impeded . | . . . Haulers Reinforced . | . . . Active Scanning Responses . | . . . Cargo Convoy Interrupts . | . . . Stealth | -11 -10 -10 --------- Run | Yrd Mat Min Distress Signals . | . . . Communications Jammed . | . . . Distress Signals . | . . . Times Spotted 28 | . 15 13 Peak Tracking Total 5 | . 3 5 Tactical Retreats 4 | . 4 . Traps | -11 -10 -10 ------- Run | Yrd Mat Min Traps Triggered 2 | . 2 . Indirectly . | . . . Trap Hack Attempts . | . . . Triggered . | . . . Disarmed . | . . . Reprogrammed . | . . . Reused . | . . . Traps Extracted . | . . . Installed . | . . . Triggered . | . . . Machines | -11 -10 -10 ---------- Run | Yrd Mat Min Machines Disabled 3 | . . 3 Max in Single Turn 3 | . . 3 Machines Repaired . | . . . Machines Dismantled . | . . . Machines Sabotaged . | . . . Overloaded Fab Kills . | . . . Hacking | -11 -10 -10 --------- Run | Yrd Mat Min Machines Accessed 5 | . 3 2 Terminals 4 | . 3 1 Fabricators . | . . . Repair Stations . | . . . Recycling Units . | . . . Scanalyzers . | . . . Garrison Access . | . . . Total Hacks 18 | . 12 6 Successful 10 | . 7 3 Failed 8 | . 5 3 Catastrophic 1 | . . 1 Database Lockouts . | . . . Manual 12 | . 9 3 Terminals 17 | . 12 5 Fabricators . | . . . Repair Stations . | . . . Recycling Units . | . . . Scanalyzers . | . . . Garrison Access . | . . . Terminal Hacks 7 | . 4 3 Prototype ID Bank 3 | . 2 1 Open Door 1 | . . 1 Terminal Index 1 | . 1 . Patrol Status 1 | . . 1 Hauler Manifests 1 | . 1 . Fabricator Hacks . | . . . Repair Station Hacks . | . . . Recycling Unit Hacks . | . . . Scanalyzer . | . . . Garrison Access Hacks . | . . . Unauthorized Hacks 3 | . 3 . Terminals 3 | . 3 . Botnet 2 | . 2 . Operators 1 | . 1 . Fabricators . | . . . Repair Stations . | . . . Recycling Units . | . . . Scanalyzers . | . . . Garrison Access . | . . . Data Cores Recovered . | . . . Used . | . . . Hacking Detections 4 | . 3 1 Full Trace Events . | . . . Feedback Events . | . . . Feedback Blocked . | . . . Robot Schematics Acquired . | . . . Robots Built . | . . . Authchips . | . . . Time . | . . . Total Robot Build Rating . | . . . Part Schematics Acquired . | . . . Parts Built . | . . . Authchips . | . . . Time . | . . . Total Part Build Rating . | . . . Parts Repaired . | . . . Time . | . . . Parts Recycled . | . . . Recycled Matter . | . . . Retrieved Matter . | . . . Retrieved Components . | . . . Parts Scanalyzed . | . . . Part Schematics Acquired . | . . . Parts Damaged . | . . . Bothacking | -11 -10 -10 ------------ Run | Yrd Mat Min Used RIF Installer . | . . . Robots Hacked . | . . . Non-combat . | . . . Combat . | . . . Robot Hacks Applied . | . . . Relay Couplers Released . | . . . Fabnet Peak Effective % . | . . . Robots Rewired . | . . . Allies Hacked . | . . . Hacks Repelled . | . . . Allies | -11 -10 -10 -------- Run | Yrd Mat Min Total Allies 1 | . . 1 Largest Group 1 | . . 1 Highest-Rated Group 31 | . . 31 Highest-Rated Ally 31 | . . 31 Total Orders . | . . . Ally Attacks 1 | . . 1 Total Damage . | . . . Kills . | . . . Allies Corrupted . | . . . Allies Melted . | . . . Intel | -11 -10 -10 ------- Run | Yrd Mat Min Robot Analysis Total . | . . . Derelict Logs Recovered 2 | . . 2 Drone Launches . | . . . Drone Recoveries . | . . . Exploration | -11 -10 -10 ------------- Run | Yrd Mat Min Turns Passed 883 | 65 519 299 Spaces Moved 718 | 44 395 279 Core 13 | 2 . 11 Treads . | . . . Legs . | . . . Wheels 705 | 42 395 268 Hover . | . . . Flight . | . . . Fastest Speed 50 | 50 90 50 Average Speed 92 | 97 94 88 Slowest Speed 100 | 100 100 100 Overloaded Moves . | . . . Propulsion Burnouts . | . . . Robots Hopped . | . . . Cave-ins Triggered . | . . . Exploration Rate (%) 40 | 4 58 60 Regions Visited 2 Branch Regions 1 Pre-discovered Areas 1 | . . 1 Known Exits Taken . | . . . Unknown Exits Taken 2 | 1 1 . Scrap Searched . | . . . Spaces Dug . | . . . Terrain Destroyed 40 | . 7 33 Melee . | . . . Projectile . | . . . AOE 40 | . 7 33 Terrain Rammed . | . . . Walls Destroyed . | . . . Machines Disabled . | . . . Actions | -11 -10 -10 --------- Run | Yrd Mat Min Total 832 | 57 467 308 Wait 25 | 1 20 4 Move 716 | 43 394 279 Hop . | . . . Pick Up 11 | 3 7 1 Fast Attach 7 | 7 . . Attach 3 | . 2 1 Detach . | . . . Swap 12 | . 3 9 Drop 2 | . 1 1 Fire 56 | 3 40 13 Melee . | . . . Ram . | . . . Kick . | . . . Crush . | . . . Escape Stasis . | . . . Rewire . | . . . Trap . | . . . Miscellaneous . | . . . Route ------- -11/Scrapyard -10/Materials (discovered 4 exits: [*Mat x2] / *Min x2) -10/Mines (discovered 2 exits: [*Mat x2]) History --------- Turn | Location | Event 19 | -11/Scrapyard | Discovered new exit (range 14) 66 | -11/Scrapyard | Entered Materials 89 | -10/Materials | Discovered new exit (range 6) 179 | -10/Materials | Discovered new exit (range 13) 243 | -10/Materials | Discovered new exit (range 9) 305 | -10/Materials | Build established: Mutant 488 | -10/Materials | Discovered new exit (range 5) 585 | -10/Materials | Entered Mines 610 | -10/Mines | Received a Mining Laser from a helpful Derelict 680 | -10/Mines | Build established: Scavenger-Mutant 738 | -10/Mines | Learned location of Mines (-9) 770 | -10/Mines | Found the Drone Emporium 774 | -10/Mines | Found Prototype Device 775 | -10/Mines | Identified Thief Drone Bay 805 | -10/Mines | Discovered new exit (range 9) 829 | -10/Mines | Discovered new exit (range 13) 833 | -10/Mines | Assembled infested the area 835 | -10/Mines | Learned 4 Materials zone layouts 867 | -10/Mines | Core integrity fell below 50% 878 | -10/Mines | Released all parts (6) 884 | -10/Mines | Core integrity fell below 20% 884 | -10/Mines | Destroyed by D-53 Grenadier with Mini Grenade Launcher Last Messages --------------- 00833_ V9-IVO(g) destroyed. 00835_ Acquired derelict log, extracted data. Data stored: Materials zone layouts (x4). 00857_ U-05 Engineer lays Concrete. 00858_ U-05 Engineer builds a Wall. 00866_ as-41268 destroyed. 00866_ Destroyed Asb. F-torch. 00868_ as-08003 destroyed. 00868_ as-24097 destroyed. 00868_ as-69795 destroyed. 00872_ Acquired 3 matter. 00877_ The unstable cave ceiling collapses. 00878_ Com. Wheel destroyed. 00878_ Released Lgt. Assault Rifle. 00878_ Released Wheel. 00878_ Released Lgt. Ion Engine. 00878_ Released Sml. Storage Unit. 00878_ Released Seismic Detector. 00878_ Released Assault Rifle. 00884_ as-13667 destroyed. Map ----- +----------------------------------------------------+ | ????????????????????????????????????????????# | | ???????????????????????????????????????????## | | ???????????????????????????????????????????# | | ??????????????????????????????????????????# ## | | ???????????????????????????????????????? ??# | | ??????????????????????????????????????? ???? | | ????????????????????????????????????????## ??#### | | ?????????????????????????????????????????????##""# | | ?????????????????????????????????????????????#" | | ?????????????????????????????????????????????#" | | ?????????????????????????????????????????????#" | | ?????????????????????????????????????????????#" | | ?????????????????????????????????????????????##""# | | ??????????????????????????????????????????????#### | | ?????????????????????????????????????????????????# | | ?????????????????????????????????????????????????? | | ?????????????????????????????????????????????????? | | ?????????????????????????###?????????????????##### | | ????????????????????????? #?????????????????# | | ?????????????????????????# #?????????????????# | | ?????????????????????????# #?????????????????# ### | | ?????????????????????????# #?????????????##### #?? | | ?????????????????????????# #?????????????# #?? | | ?????????????????????????# #?????????????# ### #?? | | ??????????????????????#### #?????????????# #?# #?? | | ?????????????????????## @ #???????????### ### ### | | ?????????????????????# % #???????????# | | ?????????????????#####= a ##???????????# | | ?????????????????# # % ???????###### " | | ????????????????##=! % d######## *!%= """ < | | ???????????######*[= < # """ | | ??????????## !![ ########## # """ | | ?????????## ##????????????# | | ?????????# #?????????????########### | | ?????????# ### ###???????????????????????? | | ?????????## ##?########?????????????????????????? | | ??????????###????????????????????????????????????? | | ?????????????????????????????????????????????????? | | ?????????????????????????????????????????????????? | | | | | | | | | | | | | | | | | | | | | | | +----------------------------------------------------+ Best States ------------- Heat Dissipation 25 Energy Generation 10 Energy Capacity 250 Matter Stores 300 Matter Capacity 300 Sight Range 16 Terrain Scan Density 10 Evasion (%) 50 Item Schematics ----------------- None Robot Schematics ------------------ None Fabricated ------------ Nothing Alien Tech Used ----------------- None Achievements -------------- None Challenges ------------ None Game ------ Seed HardcellMappingMask Manual? 0 Play Time 00:12:18 Cumulative 76.1 hours Start 2025.01.02 @ 12:46:59 End 2025.01.02 @ 12:58:27 Sessions 1 Manual Loads 0 Difficulty Rogue Special Mode None Game No. 16 Rogue 16 Adventurer 0 Explorer 0 Win Type - Total 4 Types 2/0/1/1/0/0/0/0/0 Lore% 40 Gallery% 47 Achievement% 51 Wizard Run 0 Options --------- Layout 1 ASCII 0 Keyboard 0 Movement Mouse Keybinds 0 Fullscreen 1 Font 24/Smallcaps Map View 50x35 Zoom Use 0% Tactical HUD 1 Map Filters NONE Filters NONE Steam 1 RUN: d3ceb0b8-dc41-4906-8362-9ab9f224756f